[Event "WYCC 2018 G14"]
[Site "Halkidiki"]
[Date "2018.10.24"]
[Round "6"]
[White "Bardorz, Jana"]
[Black "Guillo Longares, Cecilia"]
[Result "1/2-1/2"]
[ECO "B25"]
[WhiteElo "1810"]
[BlackElo "1998"]
[Annotator "NA"]
[PlyCount "146"]
[EventDate "2018.10.20"]
[EventType "swiss"]
[EventCountry "GRE"]
[SourceTitle "playchess.com"]
[Source "ChessBase"]
[SourceQuality "1"]
[TimeControl "40/5400+30:1800+30"]

1. e4 {[%emt 0:00:00]} c5 {[%emt 0:00:00]} 2. Nc3 {[%emt 0:00:00]} Nc6 {[%emt 0:00:00]} 3. g3 {[%emt 0:00:00]} g6 {[%emt 0:00:00]} 4. Bg2 {[%emt 0:00:00]} Bg7 $11 {[%emt 0:00:00] LiveBook: 5171 Games} 5. d3 {[%emt 0:00:00]} d6 {[%emt 0:00:00]} 6. f4 {[%emt 0:00:24]} e6 {[%emt 0:00:00]} 7. Nf3 {[%emt 0:00:13]} Nge7 {[%emt 0:00:00]} 8. O-O {[%emt 0:00:19]} O-O {[%emt 0:00:00]} 9. Be3 {[%emt 0:00:22]} b6 {[%emt 0:00:00]} 10. h3 {[%emt 0:07:12]} Bb7 {[%emt 0:03:14]} 11. g4 {[%emt 0:05:21]} Nd4 {[%emt 0:03:32]} 12. Rb1 {[%emt 0:07:32]} f5 {[%emt 0:03:07]} 13. Nd2 {[%emt 0:09:25]} Nec6 {[%emt 0:06:52]} 14. Ne2 {[%emt 0:07:09]} Nxe2+ {[%emt 0:06:59]} 15. Qxe2 {[%emt 0:00:11]} Rb8 {[%emt 0:06:29]} 16. c3 {[%emt 0:03:19]} d5 {[%emt 0:03:16]} 17. e5 {[%emt 0:04:26]} d4 {[%emt 0:02:10]} 18. Bf2 {[%emt 0:02:00]} dxc3 {[%emt 0:07:11]} 19. bxc3 {[%emt 0:00:51]} Qd7 {[%emt 0:02:08]} 20. Nc4 {[%emt 0:05:42]} Ne7 {[%emt 0:06:24]} 21. Bxb7 {[%emt 0:04:25]} Rxb7 {[%emt 0:00:13]} 22. Nd6 {[%emt 0:01:17]} Rbb8 {[%emt 0:00:24]} 23. g5 {[%emt 0:03:25]} Rfd8 {[%emt 0:04:05]} 24. Rfd1 {[%emt 0:04:05]} Nd5 {[%emt 0:02:03]} 25. Qd2 {[%emt 0:08:27]} Bf8 {[%emt 0:00:06]} 26. c4 {[%emt 0:03:28]} Nb4 {[%emt 0:01:47]} 27. d4 {[%emt 0:01:22]} Na6 {[%emt 0:03:57]} 28. dxc5 {[%emt 0:06:19]} bxc5 {[%emt 0:03:23]} 29. Qa5 {[%emt 0:02:19]} Qc6 {[%emt 0:04:05]} 30. Nb5 {[%emt 0:02:40]} Qb6 {[%emt 0:01:17]} 31. Qxb6 {[%emt 0:01:50]} axb6 {[%emt 0:00:05]} 32. Nd6 {[%emt 0:01:19]} Nb4 {[%emt 0:04:42]} 33. a3 {[%emt 0:01:49]} Nc6 {[%emt 0:01:08]} 34. Rd3 {[%emt 0:01:28]} Na5 {[%emt 0:01:34]} 35. Rbd1 {[%emt 0:02:44]} Rd7 {[%emt 0:03:47]} 36. Be1 {[%emt 0:02:41]} Nc6 {[%emt 0:02:16]} 37. Ne4 {[%emt 0:01:52]} Rxd3 {[%emt 0:01:01]} 38. Nf6+ {[%emt 0:00:05]} Kg7 {[%emt 0:02:00]} 39. Rxd3 {[%emt 0:00:00]} Nd4 {[%emt 0:00:00]} 40. Kf2 {[%emt 0:00:00]} Rb7 {[%emt 0:00:00]} 41. Bc3 {[%emt 0:07:07]} Ra7 {[%emt 0:10:08]} 42. Bb2 {[%emt 0:00:47]} Ra4 {[%emt 0:02:36]} 43. Rc3 {[%emt 0:01:54]} Be7 {[%emt 0:01:52]} 44. h4 {[%emt 0:02:55]} b5 {[%emt 0:14:45]} 45. cxb5 {[%emt 0:05:06]} Nxb5 {[%emt 0:00:17]} 46. Rb3 {[%emt 0:00:42]} Ra5 {[%emt 0:01:19]} 47. a4 {[%emt 0:02:44]} Rxa4 {[%emt 0:07:26]} 48. Rxb5 {[%emt 0:00:21]} Rxf4+ {[%emt 0:00:06]} 49. Kg3 {[%emt 0:00:32]} Rb4 {[%emt 0:00:40]} 50. Rxb4 {[%emt 0:01:10]} cxb4 {[%emt 0:00:05]} 51. Kf3 {[%emt 0:02:11]} Bc5 {[%emt 0:02:09]} 52. Nd7 {[%emt 0:01:13]} Ba7 {[%emt 0:00:57]} 53. Ke2 {[%emt 0:00:59]} Kf7 {[%emt 0:01:26]} 54. Nf6 {[%emt 0:00:18]} Kg7 {[%emt 0:00:25]} 55. Ne8+ {[%emt 0:00:24]} Kf8 {[%emt 0:00:58]} 56. Nc7 {[%emt 0:00:39]} Ke7 {[%emt 0:01:02]} 57. Nb5 {[%emt 0:00:06]} Bb8 {[%emt 0:01:34]} 58. Nd4 {[%emt 0:00:49]} Kd7 {[%emt 0:00:39]} 59. Nc2 {[%emt 0:00:04]} b3 {[%emt 0:00:46]} 60. Na1 {[%emt 0:00:07]} Kc6 {[%emt 0:00:04]} 61. Nxb3 {[%emt 0:00:51]} Kd5 {[%emt 0:00:04]} 62. Kf3 {[%emt 0:01:40]} Bxe5 {[%emt 0:01:05]} 63. Bxe5 {[%emt 0:00:06]} Kxe5 {[%emt 0:00:05]} 64. Nc5 {[%emt 0:01:10]} Kd6 {[%emt 0:00:36]} 65. Nd3 {[%emt 0:01:19]} e5 {[%emt 0:00:25]} 66. Ke3 {[%emt 0:01:02]} Kd5 {[%emt 0:02:28]} 67. Nb4+ {[%emt 0:00:23]} Kc5 {[%emt 0:00:36]} 68. Na6+ {[%emt 0:01:11]} Kb6 {[%emt 0:00:10]} 69. Nb8 {[%emt 0:00:35]} Kc7 {[%emt 0:00:04]} 70. Na6+ {[%emt 0:00:03]} Kb6 {[%emt 0:00:03]} 71. Nb4 {[%emt 0:00:06]} Kc5 {[%emt 0:00:06]} 72. Nd3+ {[%emt 0:00:53]} Kd5 {[%emt 0:00:05]} 73. Nf2 {[%emt 0:00:50]} Kc5 {[%emt 0:01:33]} 1/2-1/2

[Event "WYCC 2018 G14"]
[Site "Halkidiki"]
[Date "2018.10.24"]
[Round "6"]
[White "Jaufarally, Nadia"]
[Black "Lehaci, Miruna-Daria"]
[Result "0-1"]
[ECO "B92"]
[WhiteElo "1810"]
[BlackElo "1933"]
[Annotator "NA"]
[PlyCount "116"]
[EventDate "2018.10.20"]
[EventType "swiss"]
[EventCountry "GRE"]
[SourceTitle "playchess.com"]
[Source "ChessBase"]
[SourceQuality "1"]
[TimeControl "40/5400+30:1800+30"]

1. e4 {[%emt 0:00:00]} c5 {[%emt 0:00:00]} 2. Nf3 {[%emt 0:00:00]} d6 {[%emt 0:00:00]} 3. d4 {[%emt 0:00:00]} cxd4 {[%emt 0:00:00]} 4. Nxd4 {[%emt 0:00:04]} Nf6 {[%emt 0:00:00]} 5. Nc3 {[%emt 0:00:13]} a6 {[%emt 0:00:00]} 6. Be2 {[%emt 0:01:49]} e5 {[%emt 0:00:03]} 7. Nb3 {[%emt 0:00:44]} Be6 {[%emt 0:00:49]} 8. Bg5 {[%emt 0:07:45]} Nbd7 {[%emt 0:04:21]} 9. O-O {[%emt 0:00:58]} Be7 {[%emt 0:05:34]} 10. Qd2 {[%emt 0:09:26]} b5 {[%emt 0:04:28]} 11. a3 {[%emt 0:03:54]} O-O {[%emt 0:02:09]} 12. Kh1 {[%emt 0:02:46]} Rc8 {[%emt 0:11:26]} 13. f4 {[%emt 0:13:52]} exf4 {[%emt 0:00:43]} 14. Bxf4 {[%emt 0:01:30]} Ne5 {[%emt 0:08:07]} 15. Rad1 {[%emt 0:04:26]} Qb6 {[%emt 0:12:21]} 16. Nd4 {[%emt 0:05:19]} Qc5 {[%emt 0:10:05]} 17. Nf5 {[%emt 0:08:04]} Bxf5 {[%emt 0:00:45]} 18. exf5 {[%emt 0:05:05]} Rfd8 {[%emt 0:04:25]} 19. Qd4 {[%emt 0:03:09]} Nc6 {[%emt 0:01:10]} 20. Qe3 {[%emt 0:12:38]} Bf8 {[%emt 0:06:22]} 21. Bf3 {[%emt 0:04:53]} Re8 {[%emt 0:02:39]} 22. Qxc5 {[%emt 0:05:51]} dxc5 {[%emt 0:00:04]} 23. Bxc6 {[%emt 0:02:03]} Rxc6 {[%emt 0:00:05]} 24. Nd5 {[%emt 0:02:29]} Nxd5 {[%emt 0:02:13]} 25. Rxd5 {[%emt 0:00:02]} c4 {[%emt 0:00:12]} 26. Rfd1 {[%emt 0:01:37]} c3 {[%emt 0:02:35]} 27. b4 {[%emt 0:00:13]} g6 {[%emt 0:01:21]} 28. fxg6 {[%emt 0:01:19]} hxg6 {[%emt 0:00:07]} 29. Rd8 {[%emt 0:02:07]} Rce6 {[%emt 0:01:34]} 30. Kg1 {[%emt 0:00:15]} a5 {[%emt 0:03:08]} 31. Rxe8 {[%emt 0:01:56]} Rxe8 {[%emt 0:00:06]} 32. Rb1 {[%emt 0:00:55]} Re4 {[%emt 0:00:24]} 33. Bc7 {[%emt 0:00:30]} axb4 {[%emt 0:00:04]} 34. axb4 {[%emt 0:00:06]} Bxb4 {[%emt 0:00:10]} 35. Bb6 {[%emt 0:00:38]} f5 {[%emt 0:01:30]} 36. Kf2 {[%emt 0:00:18]} Kf7 {[%emt 0:00:04]} 37. Kf3 {[%emt 0:00:10]} Ke6 {[%emt 0:00:30]} 38. h3 {[%emt 0:00:41]} Kd5 {[%emt 0:01:02]} 39. g4 {[%emt 0:00:54]} Kc6 {[%emt 0:00:52]} 40. Bf2 {[%emt 0:00:00]} Bd6 {[%emt 0:00:00]} 41. gxf5 {[%emt 0:02:25]} Rf4+ {[%emt 0:07:59]} 42. Ke2 {[%emt 0:02:35]} Rxf5 43. Bd4 {[%emt 0:01:09]} b4 {[%emt 0:01:20]} 44. Rb3 {[%emt 0:06:15]} Rg5 {[%emt 0:12:27]} 45. Bxc3 {[%emt 0:04:58]} bxc3 {[%emt 0:00:05]} 46. Rxc3+ {[%emt 0:02:01]} Kd5 {[%emt 0:00:00]} 47. Rd3+ {[%emt 0:03:03]} Ke6 {[%emt 0:00:34]} 48. Kf2 {[%emt 0:06:17]} Rc5 {[%emt 0:00:41]} 49. c3 {[%emt 0:01:05]} Be5 {[%emt 0:00:40]} 50. Rd1 {[%emt 0:00:33]} Rxc3 {[%emt 0:01:29]} 51. Rh1 {[%emt 0:01:21]} Kf5 {[%emt 0:01:07]} 52. Ke2 {[%emt 0:01:52]} Kg5 {[%emt 0:01:00]} 53. Kd2 {[%emt 0:02:25]} Ra3 {[%emt 0:03:39]} 54. Kc2 {[%emt 0:00:53]} Rc3+ {[%emt 0:00:53]} 55. Kd2 {[%emt 0:00:45]} Rg3 {[%emt 0:00:26]} 56. Kc2 {[%emt 0:00:10]} Kh4 {[%emt 0:00:32]} 57. Re1 {[%emt 0:01:03]} Bf4 {[%emt 0:00:07]} 58. Re4 g5 0-1

[Event "WYCC 2018 G14"]
[Site "Halkidiki"]
[Date "2018.10.24"]
[Round "6"]
[White "Zeliantsova, Kseniya"]
[Black "He, Emma"]
[Result "1-0"]
[ECO "C80"]
[WhiteElo "1804"]
[BlackElo "1674"]
[Annotator "NA"]
[PlyCount "119"]
[EventDate "2018.10.20"]
[EventType "swiss"]
[EventCountry "GRE"]
[SourceTitle "playchess.com"]
[Source "ChessBase"]
[SourceQuality "1"]
[TimeControl "40/5400+30:1800+30"]

1. e4 {[%emt 0:00:00]} e5 {[%emt 0:00:00]} 2. Nf3 {[%emt 0:00:00]} Nc6 {[%emt 0:00:00]} 3. Bb5 {[%emt 0:00:00]} a6 {[%emt 0:00:00]} 4. Ba4 {[%emt 0:00:00]} Nf6 {[%emt 0:00:00]} 5. O-O {[%emt 0:00:00]} Nxe4 {[%emt 0:00:01]} 6. Re1 {[%emt 0:00:22]} Nc5 {[%emt 0:00:14]} 7. Bxc6 {[%emt 0:00:28]} dxc6 {[%emt 0:00:29]} 8. Nxe5 {[%emt 0:01:20]} Be7 {[%emt 0:01:00]} 9. d4 {[%emt 0:01:03]} Nd7 {[%emt 0:01:17]} 10. Bg5 {[%emt 0:05:23]} Nf6 {[%emt 0:12:34]} 11. Bxf6 {[%emt 0:04:23]} gxf6 {[%emt 0:00:52]} 12. Ng4 {[%emt 0:00:49]} Be6 {[%emt 0:11:47]} 13. c3 {[%emt 0:22:30]} Qd7 {[%emt 0:05:08]} 14. Ne3 {[%emt 0:00:05]} O-O-O {[%emt 0:00:42]} 15. Nd2 {[%emt 0:01:51]} f5 {[%emt 0:09:47]} 16. Nec4 {[%emt 0:07:56]} Rhg8 {[%emt 0:07:23]} 17. Ne5 {[%emt 0:12:10]} Qe8 {[%emt 0:09:38]} 18. Qe2 {[%emt 0:04:18]} Bd5 {[%emt 0:08:50]} 19. g3 {[%emt 0:05:48]} Bf6 {[%emt 0:04:15]} 20. Qd3 {[%emt 0:03:31]} Be6 {[%emt 0:02:44]} 21. b4 {[%emt 0:04:55]} h5 {[%emt 0:04:27]} 22. Qf3 {[%emt 0:04:15]} Bg5 {[%emt 0:03:10]} 23. Nf1 {[%emt 0:01:44]} h4 {[%emt 0:01:53]} 24. Nd3 {[%emt 0:01:11]} Qf8 {[%emt 0:01:14]} 25. Nc5 {[%emt 0:01:02]} Qh6 {[%emt 0:00:45]} 26. a4 {[%emt 0:04:06]} f4 {[%emt 0:01:59]} 27. Nxe6 {[%emt 0:01:24]} fxe6 {[%emt 0:00:06]} 28. g4 {[%emt 0:00:59]} h3 {[%emt 0:01:41]} 29. Re4 {[%emt 0:02:40]} Qh4 {[%emt 0:01:19]} 30. Qe2 {[%emt 0:00:41]} Rde8 {[%emt 0:06:38]} 31. f3 {[%emt 0:00:06]} Kd7 {[%emt 0:02:14]} 32. Nd2 {[%emt 0:01:21]} Qh6 {[%emt 0:01:44]} 33. Nc4 {[%emt 0:01:35]} Bf6 {[%emt 0:00:59]} 34. Re1 {[%emt 0:01:03]} Bh8 {[%emt 0:00:30]} 35. Nb2 {[%emt 0:00:22]} Rgf8 {[%emt 0:00:44]} 36. Nd3 {[%emt 0:00:15]} b6 {[%emt 0:00:18]} 37. Qd2 {[%emt 0:00:32]} Bf6 {[%emt 0:00:34]} 38. a5 {[%emt 0:02:04]} Rf7 {[%emt 0:01:09]} 39. Qxf4 {[%emt 0:02:01]} Qg7 {[%emt 0:00:49]} 40. Qe3 {[%emt 0:00:00]} Bg5 {[%emt 0:00:00]} 41. Qe2 {[%emt 0:04:38]} Bf6 {[%emt 0:04:05]} 42. Rxe6 {[%emt 0:02:04]} Rfe7 {[%emt 0:00:47]} 43. Rxe7+ {[%emt 0:00:17]} Rxe7 {[%emt 0:00:09]} 44. Ne5+ {[%emt 0:00:49]} Bxe5 {[%emt 0:02:30]} 45. dxe5 {[%emt 0:00:03]} b5 {[%emt 0:00:27]} 46. Qe4 {[%emt 0:04:52]} Re6 {[%emt 0:03:56]} 47. Qf5 {[%emt 0:01:53]} Qe7 {[%emt 0:02:07]} 48. f4 {[%emt 0:02:35]} Kc8 {[%emt 0:01:08]} 49. Qe4 {[%emt 0:00:30]} Qh4 {[%emt 0:03:04]} 50. f5 {[%emt 0:00:46]} Re8 {[%emt 0:00:13]} 51. f6 {[%emt 0:00:53]} Rg8 {[%emt 0:00:44]} 52. Qf5+ {[%emt 0:00:06]} Kb7 {[%emt 0:00:13]} 53. Re4 {[%emt 0:00:06]} Rg5 {[%emt 0:00:23]} 54. Qf4 {[%emt 0:01:07]} Rg8 {[%emt 0:00:32]} 55. e6 {[%emt 0:01:14]} Rd8 {[%emt 0:00:13]} 56. Qf3 {[%emt 0:01:31]} Rd2 {[%emt 0:01:02]} 57. f7 {[%emt 0:00:43]} Rg2+ {[%emt 0:00:59]} 58. Qxg2 {[%emt 0:00:17]} hxg2 {[%emt 0:00:13]} 59. f8=Q {[%emt 0:00:04]} Qh7 {[%emt 0:01:11]} 60. Qf5 {[%emt 0:00:09]} 1-0

[Event "WYCC 2018 G14"]
[Site "Halkidiki"]
[Date "2018.10.24"]
[Round "6"]
[White "Somton, Anita"]
[Black "Alimova, Sevinch"]
[Result "1/2-1/2"]
[ECO "B23"]
[WhiteElo "1787"]
[BlackElo "1596"]
[Annotator "NA"]
[PlyCount "49"]
[EventDate "2018.10.20"]
[EventType "swiss"]
[EventCountry "GRE"]
[SourceTitle "playchess.com"]
[Source "ChessBase"]
[SourceQuality "1"]
[TimeControl "40/5400+30:1800+30"]

1. e4 {[%emt 0:00:00]} c5 {[%emt 0:00:00]} 2. Nc3 {[%emt 0:00:01]} e6 {[%emt 0:00:00]} 3. f4 {[%emt 0:00:18]} d5 {[%emt 0:00:18]} 4. Nf3 {[%emt 0:00:15]} dxe4 {[%emt 0:02:23]} 5. Nxe4 {[%emt 0:00:50]} Nc6 {[%emt 0:00:28]} 6. Bb5 {[%emt 0:01:39]} Bd7 {[%emt 0:01:42]} 7. Qe2 {[%emt 0:01:33]} Nf6 {[%emt 0:08:39]} 8. f5 {[%emt 0:04:14]} Be7 {[%emt 0:17:17]} 9. fxe6 {[%emt 0:04:27]} Bxe6 {[%emt 0:02:12]} 10. Bxc6+ {[%emt 0:07:39]} bxc6 {[%emt 0:01:04]} 11. O-O {[%emt 0:01:17]} O-O {[%emt 0:04:18]} 12. d3 {[%emt 0:06:29]} h6 {[%emt 0:05:27]} 13. Kh1 {[%emt 0:05:35]} Nxe4 {[%emt 0:03:48]} 14. Qxe4 {[%emt 0:01:46]} Qd5 {[%emt 0:02:36]} 15. Ne5 {[%emt 0:07:03]} Bd6 {[%emt 0:10:28]} 16. Qxd5 {[%emt 0:05:00]} cxd5 {[%emt 0:00:32]} 17. Nf3 {[%emt 0:03:09]} Rab8 {[%emt 0:02:32]} 18. b3 {[%emt 0:02:42]} Rfe8 {[%emt 0:05:34]} 19. Bd2 {[%emt 0:01:57]} Bg4 {[%emt 0:01:59]} 20. Rae1 {[%emt 0:03:49]} Bxf3 {[%emt 0:03:08]} 21. gxf3 {[%emt 0:02:56]} f5 {[%emt 0:02:44]} 22. Kg2 {[%emt 0:03:44]} Kf7 {[%emt 0:00:20]} 23. f4 {[%emt 0:02:25]} a6 {[%emt 0:06:24]} 24. h4 {[%emt 0:02:20]} h5 {[%emt 0:03:20]} 25. Kf3 {[%emt 0:01:36]} 1/2-1/2

[Event "WYCC 2018 G14"]
[Site "Halkidiki"]
[Date "2018.10.24"]
[Round "6"]
[White "Bellahcene, Sofia"]
[Black "Figueroa Bernal, Julia Dennis"]
[Result "0-1"]
[ECO "B13"]
[WhiteElo "1764"]
[BlackElo "1650"]
[Annotator "NA"]
[PlyCount "110"]
[EventDate "2018.10.20"]
[EventType "swiss"]
[EventCountry "GRE"]
[SourceTitle "playchess.com"]
[Source "ChessBase"]
[SourceQuality "1"]
[TimeControl "40/5400+30:1800+30"]

1. e4 {[%emt 0:00:00]} c6 {[%emt 0:00:00]} 2. d4 {[%emt 0:00:08]} d5 {[%emt 0:00:00]} 3. exd5 {[%emt 0:00:13]} cxd5 {[%emt 0:00:00]} 4. Bd3 {[%emt 0:00:18]} Nf6 {[%emt 0:00:00]} 5. c3 {[%emt 0:00:27]} g6 {[%emt 0:00:02]} 6. Nf3 {[%emt 0:00:45]} Bg7 {[%emt 0:00:36]} 7. Bf4 {[%emt 0:01:04]} O-O {[%emt 0:00:16]} 8. Nbd2 {[%emt 0:00:49]} Nc6 {[%emt 0:00:27]} 9. O-O {[%emt 0:01:01]} Nh5 {[%emt 0:02:48]} 10. Bg5 {[%emt 0:03:37]} h6 {[%emt 0:06:39]} 11. Bh4 {[%emt 0:02:50]} Nf4 {[%emt 0:01:10]} 12. Bc2 {[%emt 0:07:06]} g5 {[%emt 0:10:06]} 13. Bg3 {[%emt 0:00:59]} Nh5 {[%emt 0:01:02]} 14. Ne5 {[%emt 0:06:24]} Nxg3 {[%emt 0:00:52]} 15. Nxc6 {[%emt 0:00:34]} bxc6 {[%emt 0:00:23]} 16. hxg3 {[%emt 0:01:27]} c5 {[%emt 0:02:52]} 17. Nf3 {[%emt 0:14:10]} cxd4 {[%emt 0:07:21]} 18. Nxd4 {[%emt 0:01:42]} e5 {[%emt 0:00:00]} 19. Nf5 {[%emt 0:01:50]} Bxf5 {[%emt 0:01:36]} 20. Bxf5 Qf6 21. g4 {[%emt 0:03:10]} Rfd8 {[%emt 0:05:51]} 22. Qc2 {[%emt 0:03:18]} Rab8 {[%emt 0:02:01]} 23. Rad1 {[%emt 0:03:12]} e4 {[%emt 0:04:45]} 24. Kh1 {[%emt 0:05:22]} h5 {[%emt 0:03:39]} 25. g3 {[%emt 0:13:22]} hxg4 {[%emt 0:04:06]} 26. Bxg4 {[%emt 0:03:17]} Qe5 {[%emt 0:01:59]} 27. f4 {[%emt 0:02:23]} gxf4 {[%emt 0:02:17]} 28. gxf4 {[%emt 0:02:50]} Qe7 {[%emt 0:01:58]} 29. Bh3 {[%emt 0:04:54]} Qh4 {[%emt 0:02:17]} 30. Kh2 {[%emt 0:00:54]} Rd6 {[%emt 0:04:28]} 31. Qf2 {[%emt 0:04:31]} Qh5 {[%emt 0:00:59]} 32. Rd2 {[%emt 0:00:33]} Rh6 {[%emt 0:00:40]} 33. Qg3 {[%emt 0:01:50]} Rg6 {[%emt 0:01:20]} 34. Qe3 {[%emt 0:00:53]} Kh7 {[%emt 0:06:08]} 35. Rg1 {[%emt 0:02:53]} Rxg1 {[%emt 0:00:39]} 36. Qxg1 {[%emt 0:00:11]} Bh6 {[%emt 0:01:58]} 37. Qe3 {[%emt 0:01:38]} Qh4 {[%emt 0:00:42]} 38. Rf2 {[%emt 0:04:08]} Rxb2 {[%emt 0:00:23]} 39. Kg1 {[%emt 0:00:11]} Rxf2 {[%emt 0:00:58]} 40. Bf5+ {[%emt 0:00:00]} Kg7 {[%emt 0:00:00]} 41. Qd4+ {[%emt 0:01:16]} Qf6 {[%emt 0:03:34]} 42. Kxf2 {[%emt 0:00:32]} Qxd4+ {[%emt 0:00:14]} 43. cxd4 {[%emt 0:00:02]} Bxf4 {[%emt 0:00:46]} 44. Bc8 {[%emt 0:00:24]} Kf6 {[%emt 0:00:14]} 45. Ke2 {[%emt 0:00:07]} Bd6 {[%emt 0:01:19]} 46. Bb7 {[%emt 0:03:20]} Kf5 {[%emt 0:07:58]} 47. Bxd5 {[%emt 0:00:27]} f6 {[%emt 0:00:08]} 48. Bc6 {[%emt 0:01:58]} Ba3 {[%emt 0:01:01]} 49. d5 {[%emt 0:03:31]} Ke5 {[%emt 0:00:24]} 50. Kd2 {[%emt 0:00:45]} f5 {[%emt 0:00:13]} 51. Ke2 {[%emt 0:00:59]} f4 {[%emt 0:00:09]} 52. Kf2 {[%emt 0:00:34]} f3 {[%emt 0:01:19]} 53. Bb7 {[%emt 0:00:13]} Kf4 {[%emt 0:00:08]} 54. Bc6 {[%emt 0:01:12]} e3+ {[%emt 0:00:05]} 55. Ke1 {[%emt 0:00:11]} Bb4+ {[%emt 0:00:18]} 0-1

[Event "WYCC 2018 G14"]
[Site "Halkidiki"]
[Date "2018.10.24"]
[Round "6"]
[White "Gabbani, Sara"]
[Black "Kumar, Arya"]
[Result "0-1"]
[ECO "B18"]
[WhiteElo "1764"]
[BlackElo "1619"]
[Annotator "NA"]
[PlyCount "68"]
[EventDate "2018.10.20"]
[EventType "swiss"]
[EventCountry "GRE"]
[SourceTitle "playchess.com"]
[Source "ChessBase"]
[SourceQuality "1"]
[TimeControl "40/5400+30:1800+30"]

1. e4 {[%emt 0:00:00]} c6 {[%emt 0:00:00]} 2. d4 {[%emt 0:00:00]} d5 {[%emt 0:00:00]} 3. Nc3 {[%emt 0:00:00]} dxe4 {[%emt 0:00:00]} 4. Nxe4 {[%emt 0:00:08]} Bf5 {[%emt 0:00:00]} 5. Ng3 {[%emt 0:00:10]} Bg6 {[%emt 0:00:00]} 6. N1e2 {[%emt 0:01:35]} Nd7 {[%emt 0:00:22]} 7. Nf4 {[%emt 0:02:07]} e5 {[%emt 0:00:37]} 8. Nxg6 {[%emt 0:01:12]} hxg6 {[%emt 0:00:10]} 9. Be3 {[%emt 0:03:10]} Ngf6 {[%emt 0:10:01]} 10. f3 {[%emt 0:12:17]} Bd6 {[%emt 0:02:29]} 11. Bf2 {[%emt 0:05:56]} Qa5+ {[%emt 0:06:49]} 12. c3 {[%emt 0:03:21]} O-O-O {[%emt 0:04:36]} 13. Qb3 {[%emt 0:06:44]} exd4 {[%emt 0:03:21]} 14. O-O-O {[%emt 0:00:52]} Bf4+ {[%emt 0:01:58]} 15. Kc2 {[%emt 0:04:22]} Nc5 {[%emt 0:09:22]} 16. Qc4 {[%emt 0:01:56]} b5 {[%emt 0:02:07]} 17. Qb4 {[%emt 0:04:47]} Qxb4 {[%emt 0:07:56]} 18. cxb4 {[%emt 0:00:07]} Ne6 {[%emt 0:00:58]} 19. Be2 {[%emt 0:01:57]} Nd5 {[%emt 0:00:49]} 20. Kb3 {[%emt 0:08:15]} a5 {[%emt 0:07:49]} 21. a3 {[%emt 0:03:33]} a4+ {[%emt 0:00:55]} 22. Ka2 {[%emt 0:00:43]} f5 {[%emt 0:09:15]} 23. Nf1 {[%emt 0:07:27]} Be3 {[%emt 0:06:47]} 24. Bxe3 {[%emt 0:03:05]} Nxe3 {[%emt 0:01:24]} 25. Nxe3 {[%emt 0:00:40]} dxe3 {[%emt 0:00:08]} 26. Rxd8+ {[%emt 0:04:20]} Rxd8 {[%emt 0:00:22]} 27. Rc1 {[%emt 0:01:34]} Nd4 {[%emt 0:03:17]} 28. Bf1 {[%emt 0:00:49]} Kc7 {[%emt 0:03:48]} 29. Kb1 {[%emt 0:04:52]} e2 {[%emt 0:01:13]} 30. Bxe2 {[%emt 0:00:09]} Nxe2 {[%emt 0:00:06]} 31. Re1 Rd2 {[%emt 0:00:33]} 32. g3 {[%emt 0:00:39]} Kd6 {[%emt 0:00:16]} 33. f4 {[%emt 0:00:58]} Kd5 {[%emt 0:00:16]} 34. Rc1 {[%emt 0:00:29]} Nxc1 {[%emt 0:00:51]} 0-1

[Event "WYCC 2018 G14"]
[Site "Halkidiki"]
[Date "2018.10.24"]
[Round "6"]
[White "Kurmangaliyeva, Liya"]
[Black "Mironenko, Galina"]
[Result "0-1"]
[ECO "B36"]
[WhiteElo "1733"]
[BlackElo "2053"]
[Annotator "NA"]
[PlyCount "116"]
[EventDate "2018.10.20"]
[EventType "swiss"]
[EventCountry "GRE"]
[SourceTitle "playchess.com"]
[Source "ChessBase"]
[SourceQuality "1"]
[TimeControl "40/5400+30:1800+30"]

1. e4 {[%emt 0:00:00]} c5 {[%emt 0:00:00]} 2. Nf3 {[%emt 0:00:00]} g6 {[%emt 0:00:00]} 3. d4 {[%emt 0:00:13]} cxd4 {[%emt 0:00:00]} 4. Nxd4 {[%emt 0:00:06]} Nc6 {[%emt 0:00:09]} 5. c4 {[%emt 0:00:33]} d6 {[%emt 0:01:17]} 6. Nc3 {[%emt 0:06:41]} Bg7 {[%emt 0:01:26]} 7. Be3 {[%emt 0:00:21]} Nf6 {[%emt 0:01:16]} 8. Be2 {[%emt 0:00:19]} O-O {[%emt 0:00:53]} 9. O-O {[%emt 0:02:14]} a5 {[%emt 0:03:51]} 10. Qd2 {[%emt 0:03:06]} a4 {[%emt 0:07:49]} 11. Rab1 {[%emt 0:10:52]} Qa5 {[%emt 0:08:10]} 12. f3 {[%emt 0:09:59]} Bd7 {[%emt 0:12:24]} 13. Rfc1 {[%emt 0:04:48]} Rfc8 {[%emt 0:06:36]} 14. b3 {[%emt 0:14:14]} axb3 {[%emt 0:07:40]} 15. Nxb3 $11 {[%emt 0:03:23]} Qd8 {[%emt 0:07:47]} 16. c5 {[%emt 0:05:47]} Be6 {[%emt 0:06:36]} 17. Nd5 {[%emt 0:16:25]} dxc5 {[%emt 0:04:39]} 18. Nxc5 {[%emt 0:07:08]} Bxd5 {[%emt 0:04:13]} 19. Nxb7 {[%emt 0:01:14]} Qd7 {[%emt 0:03:27]} 20. Nc5 {[%emt 0:00:20]} Qd6 {[%emt 0:02:58]} 21. exd5 {[%emt 0:01:43]} Qxd5 {[%emt 0:02:40]} 22. Rd1 {[%emt 0:03:47]} Rxa2 {[%emt 0:07:14]} 23. Rb2 {[%emt 0:03:21]} Qxd2 {[%emt 0:02:51]} 24. Rbxd2 {[%emt 0:00:14]} Ra3 {[%emt 0:00:55]} 25. Kf2 {[%emt 0:01:32]} e6 {[%emt 0:01:48]} 26. Ne4 {[%emt 0:02:34]} Nd5 {[%emt 0:02:57]} 27. Bc5 {[%emt 0:00:27]} Raa8 {[%emt 0:00:57]} 28. g3 {[%emt 0:01:17]} Ra5 {[%emt 0:01:37]} 29. Bc4 {[%emt 0:00:40]} Nce7 {[%emt 0:01:11]} 30. Bxd5 {[%emt 0:00:35]} Nxd5 {[%emt 0:00:38]} 31. Bd6 {[%emt 0:00:32]} Ra6 {[%emt 0:00:30]} 32. Bc5 {[%emt 0:00:31]} f5 {[%emt 0:00:31]} 33. Kg2 {[%emt 0:00:49]} fxe4 {[%emt 0:00:32]} 34. fxe4 {[%emt 0:00:05]} Bh6 {[%emt 0:00:50]} 35. Rd3 {[%emt 0:00:33]} Ra2+ {[%emt 0:00:25]} 36. Kh3 {[%emt 0:00:09]} Rxc5 {[%emt 0:00:33]} 37. exd5 {[%emt 0:00:05]} exd5 {[%emt 0:00:33]} 38. Rxd5 {[%emt 0:00:04]} Rxd5 {[%emt 0:00:11]} 39. Rxd5 {[%emt 0:00:04]} Ra7 {[%emt 0:00:31]} 40. Kg4 {[%emt 0:00:00]} Bf8 {[%emt 0:00:00]} 41. Rd8 {[%emt 0:04:39]} Kg7 {[%emt 0:02:05]} 42. h4 {[%emt 0:02:25]} Ra4+ {[%emt 0:03:24]} 43. Kf3 {[%emt 0:00:37]} h5 {[%emt 0:01:43]} 44. Kg2 {[%emt 0:06:09]} Be7 {[%emt 0:02:28]} 45. Rd7 {[%emt 0:00:50]} Kf6 {[%emt 0:00:34]} 46. Rd2 {[%emt 0:01:55]} Kf5 {[%emt 0:02:21]} 47. Kf3 {[%emt 0:01:53]} Bf6 {[%emt 0:04:49]} 48. Rd5+ {[%emt 0:07:10]} Be5 {[%emt 0:00:51]} 49. Rd3 {[%emt 0:01:32]} Ra2 {[%emt 0:02:37]} 50. Rb3 {[%emt 0:01:18]} Rc2 {[%emt 0:00:24]} 51. Rb7 {[%emt 0:01:19]} Rc3+ {[%emt 0:00:27]} 52. Kf2 {[%emt 0:00:39]} Rxg3 {[%emt 0:01:02]} 53. Rf7+ {[%emt 0:00:21]} Kg4 {[%emt 0:00:48]} 54. Re7 {[%emt 0:00:54]} Bf4 {[%emt 0:00:35]} 55. Re4 {[%emt 0:00:31]} Rh3 {[%emt 0:00:55]} 56. Ra4 {[%emt 0:01:19]} Rh2+ {[%emt 0:00:47]} 57. Kg1 {[%emt 0:00:11]} Rxh4 {[%emt 0:00:19]} 58. Rb4 {[%emt 0:00:18]} Kf3 {[%emt 0:00:16]} 0-1